bitfinex/quotes_SOLUSD_20250310
["timestamp","ask_amount","ask_price","bid_price","bid_amount"]
[1741627898439,222.72,118.93,118.92,20.0]
[1741627898949,295.419793,118.93,118.91,20.0]
[1741627899309,222.72,118.93,118.92,20.0]
[1741627899556,0.14216157,118.92,118.88,95.263]
[1741627899733,72.84195457,118.92,118.91,20.0]
[1741627900212,241.653972,118.93,118.92,20.0]
[1741627900213,222.72,118.93,118.92,20.0]
[1741627900613,295.419793,118.93,118.92,20.0]
[1741627900856,303.828093,118.93,118.91,20.0]
[1741627901054,295.419793,118.93,118.91,20.0]
[1741627901261,222.72,118.93,118.92,20.0]
[1741627901462,0.14216157,118.92,118.88,0.063]
[1741627901646,72.84195457,118.91,118.9,20.0]
[1741627902164,72.84195457,118.91,118.88,0.063]
[1741627902165,72.84195457,118.91,118.89,20.0]
[1741627902369,0.14216157,118.91,118.9,20.0]
[1741627902665,72.84195457,118.91,118.88,0.063]
[1741627902970,72.699793,118.89,118.88,20.063]
[1741627903165,18.933972,118.88,118.81,167.929793]
[1741627903362,72.699793,118.85,118.81,0.03]
[1741627903574,18.933972,118.86,118.84,20.0]
[1741627903867,0.14216157,118.84,118.81,0.03]
[1741627904068,12.96,118.83,118.82,20.0]
[1741627904251,0.28432314,118.82,118.81,0.03]
[1741627904591,91.633765,118.82,118.81,0.03]
[1741627905065,72.98411614,118.82,118.81,0.03]
[1741627905268,85.659793,118.83,118.81,20.03]
[1741627905455,12.96,118.83,118.81,0.03]
[1741627905650,0.28432314,118.82,118.81,20.03]
[1741627905850,72.98411614,118.82,118.81,20.03]
[1741627906051,91.633765,118.82,118.79,0.063]
[1741627906241,72.98411614,118.8,118.79,0.063]
[1741627906441,0.14216157,118.8,118.79,0.063]
[1741627906653,0.14216157,118.8,118.79,20.063]
[1741627907335,85.659793,118.83,118.81,20.0]
[1741627907539,72.98411614,118.82,118.81,20.0]
[1741627907845,12.96,118.83,118.82,20.0]
[1741627908037,12.96,118.83,118.79,72.762793]
[1741627908243,12.96,118.83,118.82,20.0]
[1741627908838,13.14097031,118.83,118.82,20.0]
[1741627909044,18.933972,118.82,118.79,0.063]
[1741627909258,72.699793,118.81,118.79,0.063]
[1741627909462,91.633765,118.8,118.79,0.063]
[1741627909862,72.699793,118.77,118.72,79.05329495]
[1741627910060,235.82,118.76,118.75,20.0]
[1741627910278,236.10432314,118.76,118.75,20.0]
[1741627910464,236.10432314,118.76,118.72,6.35350195]
[1741627910772,308.80411614,118.76,118.72,6.35350195]
[1741627910974,235.82,118.76,118.75,20.0]
[1741627911158,236.10432314,118.76,118.75,20.0]
[1741627911351,236.10432314,118.76,118.75,15.0]
[1741627911555,308.80411614,118.76,118.72,6.35350195]
[1741627912673,236.10432314,118.76,118.72,79.05329495]
[1741627912881,236.10432314,118.76,118.72,6.35350195]
[1741627913048,308.80411614,118.76,118.72,6.35350195]
[1741627913249,235.82,118.76,118.72,79.05329495]
[1741627913480,308.519793,118.76,118.72,6.35350195]
[1741627913672,235.82,118.76,118.72,79.05329495]
[1741627913861,235.82,118.76,118.74,20.0]
[1741627914062,235.96216157,118.76,118.75,20.0]
[1741627914477,235.96216157,118.76,118.72,6.35350195]
[1741627914478,308.66195457,118.76,118.72,6.35350195]
[1741627914775,222.86,118.76,118.74,72.699793]
[1741627914980,222.86,118.76,118.75,81.120793]
[1741627915178,222.86,118.76,118.74,95.2]
[1741627915356,222.86,118.76,118.75,20.0]
[1741627915551,222.86,118.76,118.72,6.35350195]
[1741627915765,295.559793,118.76,118.72,6.35350195]
[1741627915966,222.86,118.76,118.72,6.35350195]
[1741627916164,222.86,118.76,118.72,6.38350195]
[1741627916369,295.559793,118.76,118.72,6.38350195]
[1741627917483,18.933972,118.73,118.72,6.38350195]
[1741627917662,12.96,118.73,118.72,6.38350195]
[1741627917868,85.659793,118.73,118.72,6.38350195]
[1741627918181,85.80195457,118.73,118.72,6.38350195]
[1741627918384,85.659793,118.73,118.72,6.38350195]
[1741627918595,12.96,118.73,118.72,6.38350195]
[1741627918777,91.352493,118.75,118.72,6.38350195]
[1741627919083,94.081593,118.74,118.72,6.38350195]
[1741627919287,85.659793,118.74,118.72,6.38350195]
[1741627920472,12.96,118.74,118.72,6.38350195]
[1741627921256,12.96,118.74,118.72,79.08329495]
[1741627921460,222.86,118.76,118.75,20.0]
[1741627921773,235.82,118.76,118.75,20.0]
[1741627922179,308.519793,118.76,118.75,20.0]
[1741627922375,316.940193,118.76,118.72,101.58350195]
[1741627922575,308.519793,118.76,118.72,6.38350195]
[1741627922772,235.82,118.76,118.75,20.0]
[1741627923078,235.82,118.76,118.75,72.699793]
[1741627923378,235.82,118.76,118.75,20.0]
[1741627923776,235.82,118.76,118.75,92.699793]
[1741627923961,222.86,118.76,118.75,187.899793]
[1741627924287,222.86,118.76,118.75,115.2]
[1741627924492,295.559793,118.76,118.72,6.38350195]
[1741627924787,72.699793,118.75,118.72,6.38350195]
[1741627925293,295.559793,118.76,118.72,6.38350195]
[1741627925582,222.86,118.76,118.72,6.38350195]
[1741627925775,72.699793,118.75,118.72,6.38350195]
[1741627925972,222.86,118.76,118.72,6.38350195]
[1741627925973,295.559793,118.76,118.72,6.38350195]
[1741627926157,222.86,118.76,118.72,6.38350195]
[1741627926554,72.98411614,118.73,118.72,6.38350195]
[1741627926765,72.84195457,118.73,118.72,6.38350195]
[1741627926954,72.98411614,118.73,118.72,6.38350195]
[1741627927183,81.122193,118.73,118.72,6.38350195]
[1741627927374,6.2063,118.74,118.72,6.38350195]
[1741627927694,85.659793,118.73,118.72,6.38350195]
[1741627927987,85.80195457,118.73,118.72,6.38350195]
[1741627928184,85.94411614,118.73,118.72,6.38350195]
[1741627928374,85.94411614,118.73,118.7,0.03]
[1741627928375,2.28432314,118.72,118.7,0.03]
[1741627928578,72.98411614,118.71,118.7,0.03]
[1741627928765,0.14216157,118.69,118.61,167.899793]
[1741627928968,72.699793,118.67,118.62,72.699793]
[1741627929168,236.08,118.66,118.65,20.0]
[1741627929385,236.08,118.66,118.65,167.899793]
[1741627929597,223.12,118.66,118.65,167.899793]
[1741627929975,223.12,118.66,118.65,168.18411614]
[1741627930181,223.12,118.66,118.65,167.899793]
[1741627931299,223.12,118.66,118.65,176.327893]
[1741627931480,223.12,118.66,118.65,95.2]
[1741627931798,223.12,118.66,118.62,103.6296]
[1741627932113,72.699793,118.65,118.6,167.929793]
[1741627932276,244.5076,118.66,118.6,167.929793]
[1741627932478,72.699793,118.64,118.6,95.23]
[1741627932872,236.08,118.66,118.6,95.23]
[1741627932873,308.779793,118.66,118.61,72.699793]
[1741627933283,72.699793,118.64,118.6,0.03]
[1741627933494,72.699793,118.62,118.6,0.03]
[1741627933795,72.699793,118.63,118.6,20.03]
[1741627934395,242.5086,118.66,118.62,20.0]
[1741627934568,223.12,118.66,118.65,20.0]
[1741627934774,295.819793,118.66,118.62,95.2]
[1741627934985,223.12,118.66,118.62,72.699793]
[1741627935291,72.699793,118.65,118.63,20.0]
[1741627935786,223.12,118.66,118.63,72.699793]
[1741627935992,223.12,118.66,118.64,20.0]
[1741627935993,304.247293,118.66,118.64,20.0]
[1741627936293,72.84195457,118.65,118.6,0.03]
[1741627936488,72.84195457,118.65,118.61,20.0]
[1741627936489,72.699793,118.63,118.61,20.0]
[1741627936790,12.96,118.62,118.61,72.699793]
[1741627937166,236.08,118.66,118.64,20.0]
[1741627937366,223.12,118.66,118.65,20.0]
[1741627937763,223.12,118.66,118.65,19.5]
[1741627938509,223.12,118.66,118.65,92.199793]
[1741627938716,223.12,118.66,118.65,187.399793]
[1741627939318,223.24,118.71,118.67,95.2]
[1741627939484,223.24,118.71,118.7,72.699793]
[1741627939685,223.24,118.71,118.7,167.899793]
[1741627940096,223.24,118.71,118.7,72.699793]
[1741627940991,223.24,118.71,118.66,81.9]
[1741627941208,223.24,118.71,118.7,92.699793]
[1741627941420,223.24,118.71,118.7,115.2]
[1741627941588,223.24,118.71,118.7,196.324293]
[1741627942701,0.15252955,118.73,118.71,0.28432314]
[1741627942903,2.955e-05,118.73,118.72,72.98411614]
[1741627943109,0.23775448,118.75,118.72,72.98411614]
[1741627943110,5.448e-05,118.75,118.74,20.28432314]
[1741627943282,6.297e-05,118.76,118.75,8.421]
[1741627943483,6.297e-05,118.76,118.75,81.120793]
[1741627943884,6.297e-05,118.76,118.75,81.40511614]
[1741627944081,6.297e-05,118.76,118.75,81.120793]
[1741627945282,6.297e-05,118.76,118.75,81.40511614]
[1741627945485,6.297e-05,118.76,118.75,95.2]
[1741627945697,6.297e-05,118.76,118.75,167.899793]
[1741627945883,6.297e-05,118.76,118.75,176.320793]
[1741627946396,0.24560754,118.78,118.76,95.19993703]
[1741627946600,0.24560754,118.78,118.76,167.89973003]
[1741627947207,3.954e-05,118.77,118.76,168.18405317]
[1741627947507,0.17728088,118.8,118.79,20.28432314]
[1741627947722,5.716e-05,118.83,118.8,2.28432314]
[1741627947886,5.716e-05,118.83,118.82,92.699793]
[1741627948218,5.716e-05,118.83,118.82,20.0]
[1741627948809,5.716e-05,118.83,118.82,187.89973003]
[1741627948810,0.15530088,118.83,118.82,187.89973003]
[1741627949512,0.15530088,118.83,118.82,196.31573003]
[1741627949921,0.15530088,118.83,118.82,187.89973003]
[1741627950219,0.15530088,118.83,118.82,167.89973003]
[1741627950400,0.15530088,118.83,118.82,95.19993703]
[1741627951800,0.15530088,118.83,118.82,167.89973003]
[1741627952137,0.15530088,118.83,118.82,95.19993703]
[1741627953915,0.15530088,118.83,118.8,167.89973003]
[1741627954427,81.27039388,118.83,118.78,95.19993703]
[1741627954613,81.27039388,118.83,118.75,95.19993703]
[1741627954614,72.699793,118.81,118.75,95.19993703]
[1741627954813,12.92,118.8,118.79,20.0]
[1741627955129,12.92,118.8,118.79,72.699793]
[1741627955339,235.94,118.8,118.79,72.699793]
[1741627955631,223.02,118.8,118.79,176.31793003]
[1741627955927,223.02,118.8,118.79,249.30204617]
[1741627956233,223.02,118.8,118.79,176.31793003]
[1741627957008,223.02,118.8,118.77,95.19993703]
[1741627957215,223.02,118.8,118.78,72.699793]
[1741627958036,223.02,118.8,118.79,20.0]
[1741627958535,223.02,118.8,118.78,72.699793]
[1741627959128,223.02,118.8,118.79,20.0]
[1741627961110,304.137293,118.8,118.74,103.62133703]
[1741627961314,72.699793,118.77,118.7,103.62423703]
[1741627961546,72.699793,118.74,118.7,95.19993703]
[1741627961723,12.92,118.73,118.68,167.89973003]
[1741627962121,72.699793,118.7,118.65,95.22993703]
[1741627962427,223.0,118.69,118.65,95.22993703]
[1741627962618,295.699793,118.69,118.65,0.03]
[1741627962941,223.0,118.69,118.65,72.729793]
[1741627963147,223.0,118.69,118.68,20.0]
[1741627963325,223.0,118.69,118.68,72.699793]
[1741627963530,223.0,118.69,118.67,95.19993703]
[1741627963725,12.92,118.68,118.67,95.19993703]
[1741627964673,85.619793,118.68,118.67,95.19993703]
[1741627964829,85.619793,118.68,118.65,0.03]
[1741627964830,94.045793,118.68,118.65,0.03]
[1741627965143,72.84195457,118.66,118.65,0.03]
[1741627965521,74.84195457,118.66,118.65,0.03]
[1741627965721,0.14216157,118.64,118.6,20.03]
[1741627966048,72.699793,118.61,118.6,0.03]
[1741627966248,85.76195457,118.61,118.55,95.19993703]
[1741627966416,72.699793,118.56,118.53,95.22993703]
[1741627966616,12.92,118.55,118.53,0.03]
[1741627967623,72.699793,118.58,118.53,72.729793]
[1741627967927,12.92,118.57,118.53,72.729793]
[1741627968252,12.92,118.57,118.54,20.0]
[1741627968460,72.699793,118.56,118.53,0.03]
[1741627968642,72.699793,118.55,118.53,0.03]
[1741627968837,72.84195457,118.54,118.53,0.03]
[1741627969147,72.699793,118.54,118.53,0.03]
[1741627969730,72.86448087,118.55,118.53,0.03]
[1741627969928,0.16468787,118.55,118.53,0.03]
[1741627970125,0.16468787,118.55,118.53,20.03]
[1741627970331,72.86448087,118.55,118.53,20.03]
[1741627970551,0.16468787,118.55,118.53,20.03]
[1741627970750,12.92,118.54,118.53,20.03]
[1741627971138,12.92,118.54,118.53,0.03]
[1741627971340,85.619793,118.54,118.53,0.03]
[1741627971545,85.90411614,118.54,118.53,0.03]
[1741627971730,72.699793,118.5,118.46,95.19993703]
[1741627971928,295.979793,118.49,118.44,95.19993703]
[1741627972245,295.979793,118.49,118.47,20.0]
[1741627972246,12.92,118.48,118.47,20.0]
[1741627972453,12.92,118.48,118.47,92.699793]
[1741627973049,12.92,118.48,118.46,72.699793]
[1741627973554,85.619793,118.48,118.43,72.699793]
[1741627973755,72.699793,118.47,118.43,95.19993703]
[1741627973941,12.92,118.48,118.46,20.0]
[1741627974254,85.619793,118.48,118.43,95.19993703]
[1741627974462,72.699793,118.46,118.41,72.699793]
[1741627974651,72.699793,118.46,118.39,103.64623703]
[1741627974841,72.699793,118.47,118.44,20.0]
[1741627975046,12.92,118.48,118.44,20.0]
[1741627975348,12.92,118.48,118.44,72.699793]
[1741627975526,94.060393,118.48,118.43,167.89973003]
[1741627975731,72.84195457,118.47,118.41,72.699793]
[1741627975928,72.699793,118.46,118.41,95.19993703]
[1741627976158,8.4412,118.47,118.39,8.4464]
[1741627976159,72.699793,118.45,118.39,95.19993703]
[1741627976353,15.0305,118.47,118.43,72.699793]
[1741627976354,6.5893,118.47,118.43,72.699793]
[1741627976534,12.92,118.48,118.42,20.0]
[1741627976732,12.92,118.48,118.42,115.19993703]
[1741627977648,12.92,118.48,118.46,72.699793]
[1741627977849,12.92,118.48,118.42,115.19993703]
[1741627977850,12.92,118.48,118.47,20.0]
[1741627978449,223.28,118.49,118.46,72.699793]
[1741627978657,223.28,118.49,118.48,92.699793]
[1741627979461,231.7195,118.49,118.45,72.699793]
[1741627979642,223.28,118.49,118.45,72.699793]
[1741627980060,223.28,118.49,118.48,92.699793]
[1741627980235,223.28,118.49,118.48,20.0]
[1741627980441,223.28,118.49,118.48,187.89973003]
[1741627980643,223.28,118.49,118.48,115.19993703]
[1741627980843,223.28,118.49,118.48,187.89973003]
[1741627981349,223.28,118.49,118.47,72.699793]
[1741627981545,223.28,118.49,118.46,72.699793]
[1741627981869,223.28,118.49,118.48,20.0]
[1741627982552,223.28,118.49,118.46,72.699793]
[1741627982746,223.28,118.49,118.46,167.89973003]
[1741627983063,231.7195,118.49,118.44,167.89973003]
[1741627983945,81.28285457,118.48,118.41,95.22993703]
[1741627984150,72.699793,118.45,118.41,95.22993703]
[1741627984451,72.699793,118.43,118.41,0.03]
[1741627985366,85.619793,118.44,118.41,0.03]
[1741627985566,72.699793,118.43,118.41,0.03]
[1741627985862,81.42861614,118.42,118.41,0.03]
[1741627986073,12.92,118.44,118.41,0.03]
[1741627986372,21.3632,118.44,118.41,0.03]
[1741627986570,12.92,118.44,118.41,0.03]
[1741627987273,12.92,118.44,118.43,20.0]
[1741627987439,12.92,118.44,118.43,92.699793]
[1741627987763,223.28,118.49,118.48,20.0]
[1741627987950,223.28,118.49,118.48,187.89973003]
[1741627988271,223.28,118.49,118.48,115.19993703]
[1741627988475,223.28,118.49,118.48,196.33993003]
[1741627988975,223.43379199,118.49,118.48,196.33993003]
[1741627989271,223.43379199,118.49,118.48,187.89973003]
[1741627989467,223.43379199,118.49,118.48,196.33993003]
[1741627989950,223.49679199,118.49,118.48,187.89973003]
[1741627991056,223.49679199,118.49,118.48,196.33993003]
[1741627991755,0.21679199,118.49,118.48,269.03972303]
[1741627991959,0.18423872,118.52,118.5,8.72312314]
[1741627992170,0.17163136,118.57,118.53,20.28432314]
[1741627992354,0.17163136,118.57,118.53,250.84880927]
[1741627992560,0.17163136,118.57,118.55,145.399586]
[1741627992957,223.72751964,118.58,118.57,94.87092082]
[1741627993158,0.063,118.61,118.6,20.0]
[1741627993365,0.063,118.61,118.6,114.57092082]
[1741627993643,12.983,118.61,118.6,20.0]
[1741627994062,0.063,118.61,118.6,187.27071382]
[1741627994453,0.063,118.61,118.6,114.57092082]
[1741627994769,0.063,118.61,118.6,187.27071382]
[1741627994953,0.063,118.61,118.6,195.70241382]
[1741627995153,0.063,118.61,118.6,187.27071382]
[1741627996078,0.063,118.61,118.6,20.0]
[1741627996269,0.20516157,118.61,118.57,72.699793]
[1741627996473,72.762793,118.61,118.53,8.4364]
[1741627996780,72.699793,118.6,118.54,72.699793]
[1741627996945,12.92,118.59,118.55,72.699793]
[1741627997150,12.92,118.59,118.58,72.699793]
[1741627997379,12.92,118.59,118.57,72.699793]
[1741627997684,0.14216157,118.54,118.46,59.56502082]
[1741627997867,72.699793,118.51,118.45,72.699793]
[1741627998189,12.9,118.5,118.46,72.699793]
[1741627998688,12.9,118.5,118.45,151.099793]
[1741627998974,72.699793,118.48,118.42,72.699793]
[1741627999182,72.699793,118.45,118.42,78.4]
[1741627999354,236.38,118.44,118.41,0.03]
[1741627999554,12.9,118.43,118.41,151.129793]
[1741627999753,12.9,118.43,118.42,72.699793]
[1741627999961,12.9,118.43,118.41,151.129793]
[1741628000780,12.9,118.43,118.41,78.43]
[1741628000956,12.9,118.43,118.41,0.03]
[1741628001358,12.9,118.43,118.41,72.729793]
[1741628001846,12.9,118.43,118.41,0.03]
[1741628002052,12.9,118.43,118.42,72.699793]
[1741628002280,223.48,118.44,118.42,81.144293]
[1741628002479,223.48,118.44,118.43,72.699793]
[1741628002686,223.48,118.44,118.43,151.099793]
[1741628002976,223.48,118.44,118.43,78.4]
[1741628003163,223.48,118.44,118.43,151.099793]
[1741628004382,223.48,118.44,118.43,78.4]
[1741628004884,223.48,118.44,118.43,151.099793]
[1741628005056,223.56,118.45,118.44,78.4]
[1741628005258,223.56,118.46,118.44,72.699793]
[1741628005455,223.56,118.46,118.45,72.98411614]
[1741628005876,8.4347,118.56,118.5,0.28432314]
[1741628005877,223.56,118.56,118.5,0.28432314]
[1741628006074,223.56,118.56,118.54,72.699793]
[1741628006384,223.56,118.56,118.54,78.4]
[1741628006764,223.56,118.56,118.54,151.099793]
[1741628006964,223.56,118.56,118.54,78.4]
[1741628007188,296.259793,118.56,118.54,78.4]
[1741628007664,72.699793,118.55,118.54,78.4]
[1741628007862,296.259793,118.56,118.54,78.4]
[1741628008058,304.694293,118.56,118.54,78.4]
[1741628008385,296.259793,118.56,118.54,78.4]
[1741628008880,0.18085593,118.55,118.54,78.4]
[1741628009579,0.18085593,118.55,118.54,159.535693]
[1741628009878,0.16606095,118.57,118.56,20.28432314]
[1741628010077,0.16317145,118.59,118.58,78.07145589]
[1741628010287,0.16317145,118.59,118.58,77.77145589]
[1741628010457,0.16317145,118.59,118.58,150.47124889]
[1741628010662,0.16317145,118.59,118.58,158.90434889]
[1741628011281,0.16317145,118.59,118.58,150.47124889]
[1741628011666,0.16317145,118.59,118.58,77.77145589]
[1741628012188,0.16317145,118.59,118.58,158.90434889]
[1741628012478,0.16317145,118.59,118.58,159.18867203]
[1741628012659,0.16317145,118.59,118.58,158.90434889]
[1741628013070,0.16317145,118.59,118.58,77.77145589]
[1741628013276,13.06317145,118.59,118.58,77.77145589]
[1741628013567,13.06317145,118.59,118.58,150.47124889]
[1741628013761,13.06317145,118.59,118.58,158.90434889]
[1741628014078,13.06317145,118.59,118.58,150.47124889]
[1741628014264,0.16317145,118.59,118.58,158.90434889]
[1741628014465,0.16317145,118.59,118.58,159.18867203]
[1741628014870,0.16317145,118.59,118.58,158.90434889]
[1741628015077,0.16317145,118.59,118.58,150.47124889]
[1741628015274,0.16317145,118.59,118.58,158.90434889]
[1741628015671,0.15997669,118.6,118.58,77.50828444]
[1741628015863,0.15997669,118.6,118.58,150.20807744]
[1741628016077,0.15997669,118.6,118.58,77.50828444]
[1741628016892,0.15997669,118.6,118.59,72.699793]
[1741628017798,0.15997669,118.6,118.59,150.20807744]
[1741628018170,0.15997669,118.6,118.59,77.50828444]
[1741628018392,0.15997669,118.6,118.59,150.20807744]
[1741628018597,0.15997669,118.6,118.59,158.64047744]
[1741628018772,0.15997669,118.6,118.59,150.20807744]
[1741628018974,0.15997669,118.6,118.59,77.50828444]
[1741628019175,0.15997669,118.6,118.58,77.50828444]
[1741628019485,0.15997669,118.6,118.57,72.699793]
[1741628020083,0.15997669,118.6,118.59,92.699793]
[1741628020682,0.15997669,118.6,118.58,72.699793]
[1741628020986,0.15997669,118.6,118.57,150.20807744]
[1741628021194,0.15997669,118.6,118.59,92.699793]
[1741628021385,0.15997669,118.6,118.59,170.20807744]
[1741628022692,7.669e-05,118.6,118.59,178.92480058]
[1741628022901,223.75748604,118.61,118.6,77.50820775]
[1741628023072,2.897e-05,118.62,118.61,0.28432314]
[1741628023389,5.711e-05,118.64,118.63,20.28432314]
[1741628023591,5.711e-05,118.64,118.63,92.699793]
[1741628024171,0.063,118.68,118.64,0.28432314]
[1741628024370,0.063,118.68,118.67,92.699793]
[1741628024594,0.063,118.68,118.67,97.50820775]
[1741628025099,0.063,118.68,118.67,170.20800075]
[1741628025392,0.063,118.68,118.67,20.0]
[1741628025974,0.063,118.68,118.64,81.128493]
[1741628026174,0.063,118.68,118.64,158.63670075]
[1741628026375,0.063,118.68,118.67,20.0]
[1741628027478,0.063,118.68,118.65,77.50820775]
[1741628027683,0.063,118.68,118.65,158.63600075]
[1741628027876,0.063,118.68,118.65,150.20800075]
[1741628028088,0.063,118.68,118.65,77.50820775]
[1741628028491,0.063,118.68,118.66,72.699793]
[1741628028901,0.17714298,118.66,118.65,77.50820775]
[1741628029193,0.17714298,118.66,118.65,158.63610075]
[1741628029398,0.17714298,118.66,118.65,150.20800075]
[1741628030014,0.17714298,118.66,118.65,77.50820775]
[1741628030213,0.17714298,118.66,118.65,150.20800075]
[1741628030382,0.17714298,118.66,118.65,158.63610075]
[1741628030678,0.17714298,118.66,118.65,150.20800075]
[1741628031084,0.17714298,118.66,118.65,77.50820775]
[1741628031308,0.17714298,118.66,118.65,150.20800075]
[1741628031492,0.17714298,118.66,118.65,77.50820775]
[1741628031693,13.05714298,118.66,118.65,77.50820775]
[1741628032407,13.05714298,118.66,118.65,150.20800075]
[1741628032785,13.05714298,118.66,118.64,72.699793]
[1741628032986,21.48464298,118.66,118.64,77.50820775]
[1741628033419,223.28,118.65,118.61,150.20800075]
[1741628033707,295.979793,118.65,118.61,77.50820775]
[1741628034906,72.699793,118.62,118.58,77.50820775]
[1741628035205,72.699793,118.63,118.58,72.699793]
[1741628035423,223.28,118.65,118.6,72.699793]
[1741628035591,231.7082,118.65,118.61,72.699793]
[1741628035787,231.7082,118.65,118.64,20.0]
[1741628035788,223.28,118.65,118.64,20.0]
[1741628036096,223.26,118.65,118.64,97.50820775]
[1741628036413,223.26,118.65,118.64,77.50820775]
[1741628036706,295.959793,118.65,118.64,77.50820775]
[1741628037314,308.819793,118.65,118.64,77.50820775]
[1741628037508,317.247893,118.65,118.6,77.50820775]
[1741628037697,72.699793,118.63,118.62,20.0]
[1741628037899,72.699793,118.64,118.62,20.0]
[1741628038407,72.699793,118.64,118.6,77.50820775]
[1741628038620,72.699793,118.61,118.6,77.50820775]
[1741628038790,72.699793,118.61,118.59,20.0]
[1741628039000,72.699793,118.62,118.59,20.0]
[1741628039215,72.699793,118.63,118.59,20.0]
[1741628039540,72.699793,118.62,118.59,20.0]
[1741628039950,72.699793,118.61,118.58,77.50820775]
[1741628040106,72.699793,118.6,118.55,150.20800075]
[1741628040425,72.699793,118.58,118.55,77.50820775]
[1741628040625,72.699793,118.58,118.54,77.53820775]
[1741628040843,72.699793,118.57,118.54,77.53820775]
[1741628041004,72.699793,118.55,118.54,0.03]
[1741628041218,223.3,118.56,118.54,0.03]
[1741628041411,223.3,118.56,118.54,150.23800075]
[1741628041718,223.3,118.56,118.55,72.699793]
[1741628041912,223.3,118.56,118.54,87.97880775]
[1741628042249,223.3,118.56,118.55,72.699793]
[1741628042608,223.3,118.56,118.55,77.50820775]
[1741628043230,223.3,118.56,118.55,150.20800075]
[1741628043608,223.3,118.56,118.55,77.50820775]
[1741628043805,231.7345,118.56,118.54,0.03]
[1741628044017,304.434293,118.56,118.54,0.03]
[1741628044404,72.699793,118.55,118.54,0.03]
[1741628045230,72.699793,118.55,118.46,77.50820775]
[1741628045231,72.98411614,118.55,118.46,77.50820775]
[1741628045523,72.699793,118.5,118.46,77.50820775]
[1741628045694,12.86,118.49,118.46,77.50820775]
[1741628045901,223.3,118.56,118.52,0.14216157]
[1741628046209,223.3,118.56,118.55,72.699793]
[1741628046416,231.7346,118.56,118.52,72.699793]
[1741628046613,231.7346,118.56,118.5,77.50820775]
[1741628046805,0.28432314,118.55,118.46,87.46020775]
[1741628047002,0.14216157,118.53,118.46,87.46020775]
[1741628047323,0.14216157,118.51,118.46,77.50820775]
[1741628047628,0.28432314,118.51,118.46,20.0]
[1741628047814,72.699793,118.48,118.43,150.20800075]
[1741628048134,223.38,118.47,118.43,77.50820775]
[1741628048308,12.86,118.46,118.43,77.50820775]
[1741628048511,72.699793,118.45,118.42,0.03]
[1741628049029,72.699793,118.43,118.42,0.03]
[1741628049198,0.17181943,118.44,118.43,20.0]
[1741628049812,0.17181943,118.44,118.42,0.03]
[1741628049813,72.87161243,118.44,118.42,0.03]
[1741628050008,81.31481243,118.44,118.42,0.03]
[1741628050207,72.699793,118.43,118.42,0.03]
[1741628051021,72.84195457,118.43,118.42,0.03]
[1741628051228,81.42791614,118.43,118.42,0.03]
[1741628051524,72.699793,118.43,118.42,0.03]
[1741628051827,72.84195457,118.43,118.42,0.03]
[1741628052037,72.87161243,118.44,118.42,0.03]
[1741628052241,4.80784302,118.43,118.42,0.03]
[1741628052532,10.36858631,118.43,118.42,0.03]
[1741628052727,10.36858631,118.43,118.41,92.699793]
[1741628053102,10.36858631,118.43,118.42,72.729793]
[1741628053505,16.68222988,118.43,118.42,72.729793]
[1741628053816,0.17181943,118.44,118.42,126.20800075]
[1741628054016,0.17181943,118.44,118.43,145.399586]
[1741628055021,0.17181943,118.44,118.43,72.699793]
[1741628055832,0.17181943,118.44,118.4,72.699793]
[1741628056039,12.86,118.43,118.41,20.0]